bitfinex/quotes_BTCUSD_20230404
["timestamp","ask_amount","ask_price","bid_price","bid_amount"]
[1680586713378,0.89048757,27934.0,27933.0,0.00043212]
[1680586713596,0.547239,27934.0,27933.0,0.00543212]
[1680586713810,0.97397871,27934.0,27933.0,0.00543212]
[1680586714029,0.97397871,27934.0,27933.0,0.00243212]
[1680586714247,0.97497871,27934.0,27933.0,0.03243212]
[1680586714465,0.97448622,27934.0,27933.0,0.03043212]
[1680586714694,0.97548622,27934.0,27933.0,0.03243212]
[1680586715131,0.87548622,27934.0,27933.0,0.03243212]
[1680586716436,0.87548622,27934.0,27933.0,0.03043212]
[1680586716656,0.87448622,27934.0,27933.0,0.03243212]
[1680586716877,0.87548622,27934.0,27933.0,0.03243212]
[1680586717112,0.88378622,27934.0,27933.0,0.03243212]
[1680586718025,0.88278622,27934.0,27933.0,0.03043212]
[1680586718246,0.88378622,27934.0,27933.0,0.03143212]
[1680586719449,0.88378622,27934.0,27933.0,0.03043212]
[1680586719646,0.88278622,27934.0,27933.0,0.03043212]
[1680586719864,0.88378622,27934.0,27933.0,0.03143212]
[1680586721761,0.45704651,27934.0,27933.0,0.03143212]
[1680586722000,0.09396651,27934.0,27933.0,0.48429898]
[1680586722429,0.09296651,27934.0,27933.0,0.48329898]
[1680586722867,0.09396651,27934.0,27933.0,0.48429898]
[1680586725090,0.09296651,27934.0,27933.0,0.48329898]
[1680586725330,1.38171099,27934.0,27933.0,0.48329898]
[1680586725553,1.73199099,27934.0,27933.0,0.48329898]
[1680586725719,1.73299099,27934.0,27933.0,0.48429898]
[1680586725892,1.73199409,27934.0,27933.0,0.48329898]
[1680586726169,1.73299409,27934.0,27933.0,0.48429898]
[1680586726375,1.73199409,27934.0,27933.0,0.48329898]
[1680586726575,1.73299409,27934.0,27933.0,0.48429898]
[1680586727032,1.73199409,27934.0,27933.0,0.48329898]
[1680586727238,1.79880194,27934.0,27933.0,0.03043212]
[1680586727461,2.12683102,27934.0,27933.0,0.03043212]
[1680586727891,2.12783102,27934.0,27933.0,0.03143212]
[1680586728119,2.06852317,27934.0,27933.0,0.03043212]
[1680586728335,2.06903068,27934.0,27933.0,0.03043212]
[1680586728552,2.07003068,27934.0,27933.0,0.03143212]
[1680586729645,2.07003068,27934.0,27931.0,0.29859241]
[1680586729874,2.01534601,27933.0,27930.0,0.00018]
[1680586730107,2.01534601,27933.0,27929.0,0.2]
[1680586730108,0.058736,27932.0,27929.0,0.2]
[1680586730323,0.00716,27932.0,27929.0,0.2]
[1680586730535,0.00716,27932.0,27929.0,0.41861952]
[1680586730760,0.00716,27932.0,27929.0,0.41879952]
[1680586731209,0.00216,27932.0,27930.0,0.00038453]
[1680586731404,0.00716,27932.0,27930.0,0.00038453]
[1680586732293,0.46207377,27931.0,27929.0,0.20018]
[1680586732582,0.00716,27930.0,27929.0,0.20018]
[1680586733677,0.00716,27930.0,27929.0,0.21218]
[1680586733895,0.00716,27930.0,27929.0,0.20018]
[1680586734119,0.00716,27930.0,27929.0,0.21218]
[1680586734535,0.00716,27930.0,27929.0,0.20018]
[1680586735351,0.00716,27930.0,27929.0,0.21218]
[1680586736060,0.00716,27930.0,27929.0,0.24218]
[1680586736232,0.00716,27930.0,27929.0,0.23018]
[1680586737075,0.00716,27930.0,27929.0,0.24218]
[1680586737289,0.00716,27930.0,27929.0,0.23018]
[1680586737504,0.00716,27930.0,27929.0,0.21218]
[1680586737746,0.4397045,27930.0,27929.0,0.21218]
[1680586738156,0.4397045,27930.0,27929.0,0.21269273]
[1680586740170,0.3526132,27930.0,27929.0,0.21263273]
[1680586740397,2.18883988,27930.0,27929.0,0.21251273]
[1680586741468,2.18883988,27930.0,27929.0,0.20051273]
[1680586742736,2.18883988,27930.0,27929.0,0.20251273]
[1680586742947,2.41860929,27930.0,27929.0,0.20251273]
[1680586743158,2.18883988,27930.0,27929.0,0.20051273]
[1680586743369,2.19183988,27930.0,27929.0,0.20251273]
[1680586745346,2.19183988,27930.0,27929.0,0.20051273]
[1680586745347,2.18883988,27930.0,27929.0,0.20051273]
[1680586745555,2.19183988,27930.0,27929.0,0.20251273]
[1680586746178,2.18883988,27930.0,27929.0,0.20051273]
[1680586746824,2.19183988,27930.0,27929.0,0.20151273]
[1680586747923,2.19483988,27930.0,27929.0,0.20351273]
[1680586748124,2.19183988,27930.0,27929.0,0.20251273]
[1680586748337,2.18883988,27930.0,27929.0,0.20151273]
[1680586748540,2.19183988,27930.0,27929.0,0.20151273]
[1680586748747,2.18883988,27930.0,27929.0,0.20051273]
[1680586748988,2.19183988,27930.0,27929.0,0.20251273]
[1680586749410,2.18883988,27930.0,27929.0,0.20051273]
[1680586749825,2.05358888,27930.0,27929.0,0.20251273]
[1680586750027,2.05058888,27930.0,27929.0,0.20051273]
[1680586750455,2.10559888,27930.0,27929.0,0.20051273]
[1680586750870,2.10859888,27930.0,27929.0,0.20151273]
[1680586751077,2.10559888,27930.0,27929.0,0.20051273]
[1680586751287,2.10859888,27930.0,27929.0,0.20151273]
[1680586751488,2.05358888,27930.0,27929.0,0.20151273]
[1680586751766,2.05058888,27930.0,27929.0,0.20051273]
[1680586751973,2.05358888,27930.0,27929.0,0.20151273]
[1680586752182,2.10064588,27930.0,27929.0,0.20051273]
[1680586752391,2.10364588,27930.0,27929.0,0.20151273]
[1680586752816,2.10064588,27930.0,27929.0,0.20051273]
[1680586753432,2.05058888,27930.0,27929.0,0.20051273]
[1680586753667,2.10569088,27930.0,27929.0,0.20151273]
[1680586753881,2.10269088,27930.0,27929.0,0.20051273]
[1680586754094,2.05358888,27930.0,27929.0,0.20151273]
[1680586754298,2.10518288,27930.0,27929.0,0.20051273]
[1680586754507,2.10218288,27930.0,27929.0,0.20051273]
[1680586754693,2.10518288,27930.0,27929.0,0.20151273]
[1680586754818,2.10218288,27930.0,27929.0,0.20051273]
[1680586755021,2.10318288,27930.0,27929.0,0.20051273]
[1680586755228,2.10218288,27930.0,27929.0,0.20051273]
[1680586755475,2.10318288,27930.0,27929.0,0.20051273]
[1680586755705,2.05158888,27930.0,27929.0,0.20051273]
[1680586755946,2.10351588,27930.0,27929.0,0.20051273]
[1680586756202,2.05158888,27930.0,27929.0,0.20051273]
[1680586756445,2.05058888,27930.0,27929.0,0.20051273]
[1680586756714,2.05158888,27930.0,27929.0,0.20051273]
[1680586756965,2.10166288,27930.0,27929.0,0.20051273]
[1680586757384,2.05158888,27930.0,27929.0,0.20051273]
[1680586758516,2.10417788,27930.0,27929.0,0.20051273]
[1680586759170,2.10310388,27930.0,27929.0,0.20051273]
[1680586759495,2.05158888,27930.0,27929.0,0.20051273]
[1680586760144,2.05058888,27930.0,27929.0,0.20051273]
[1680586760360,2.05158888,27930.0,27929.0,0.20051273]
[1680586760787,2.05058888,27930.0,27929.0,0.20051273]
[1680586761001,2.05158888,27930.0,27929.0,0.20044342]
[1680586761217,2.40037919,27930.0,27929.0,0.20044342]
[1680586761427,2.4183272,27930.0,27929.0,0.20044342]
[1680586761642,1.95579197,27930.0,27929.0,0.20044342]
[1680586761849,2.33084966,27930.0,27929.0,0.20044342]
[1680586762063,2.38059766,27930.0,27929.0,0.20044342]
[1680586762484,2.29559766,27930.0,27929.0,0.20044342]
[1680586762689,2.29459766,27930.0,27929.0,0.20044342]
[1680586762901,2.29559766,27930.0,27929.0,0.20044342]
[1680586763115,2.29459766,27930.0,27929.0,0.20044342]
[1680586763347,2.08465335,27930.0,27929.0,0.20244342]
[1680586764494,1.74294966,27930.0,27929.0,0.00251273]
[1680586764688,1.74244215,27930.0,27929.0,0.00251273]
[1680586765153,2.11954215,27930.0,27929.0,0.00251273]
[1680586765398,0.00051,27929.0,27923.0,0.01180515]
[1680586765627,0.0847,27925.0,27923.0,0.01168515]
[1680586765845,0.102892,27924.0,27923.0,0.01168515]
[1680586766066,0.411392,27924.0,27923.0,0.01168515]
[1680586766506,0.411392,27924.0,27923.0,0.01268515]
[1680586766723,0.411392,27924.0,27923.0,0.01168515]
[1680586766949,0.46105195,27924.0,27923.0,0.01168515]
[1680586767172,0.48805195,27924.0,27923.0,0.01268515]
[1680586768285,0.438392,27924.0,27923.0,0.01268515]
[1680586768950,0.411392,27924.0,27923.0,0.01168515]
[1680586769134,0.438392,27924.0,27923.0,0.01268515]
[1680586770045,0.47387594,27924.0,27923.0,0.01268515]
[1680586770253,0.47387594,27924.0,27923.0,0.01168515]
[1680586770466,0.47387594,27924.0,27923.0,0.01268515]
[1680586771410,0.47387594,27924.0,27923.0,0.30577657]
[1680586771411,0.3355,27924.0,27923.0,0.30577657]
[1680586771621,0.042662,27924.0,27923.0,0.50588726]
[1680586774250,0.042662,27924.0,27923.0,0.50570726]
[1680586774488,0.05178983,27924.0,27923.0,0.50570726]
[1680586774801,0.05178983,27924.0,27923.0,0.50588726]
[1680586775013,0.05178983,27924.0,27923.0,0.50557638]
[1680586775228,0.02478983,27924.0,27923.0,0.50457638]
[1680586775433,0.02578983,27924.0,27923.0,0.51457638]
[1680586775852,0.02478983,27924.0,27923.0,0.50457638]
[1680586776074,0.02578983,27924.0,27923.0,0.51457638]
[1680586776278,0.01012783,27924.0,27923.0,0.51457638]
[1680586777363,0.00912783,27924.0,27923.0,0.50457638]
[1680586777578,0.01012783,27924.0,27923.0,0.51457638]
[1680586778012,0.01728983,27924.0,27923.0,0.51457638]
[1680586778260,0.36930883,27924.0,27923.0,0.51457638]
[1680586778482,0.36981634,27924.0,27923.0,0.51457638]
[1680586778695,0.36981634,27924.0,27923.0,0.50457638]
[1680586778916,0.36881634,27924.0,27923.0,0.50457638]
[1680586779134,0.31679734,27924.0,27923.0,0.50557638]
[1680586779997,0.36934934,27924.0,27923.0,0.50557638]
[1680586780202,0.36934934,27924.0,27923.0,0.50457638]
[1680586780418,0.31679734,27924.0,27923.0,0.50557638]
[1680586781052,0.32529734,27924.0,27923.0,0.50557638]
[1680586781474,0.37830634,27924.0,27923.0,0.50557638]
[1680586781688,0.37608734,27924.0,27923.0,0.50557638]
[1680586781895,0.32529734,27924.0,27923.0,0.50557638]
[1680586782106,0.32529734,27924.0,27923.0,0.50457638]
[1680586782971,0.02529734,27924.0,27923.0,0.50457638]
[1680586783183,0.02478983,27924.0,27923.0,0.50457638]
[1680586783432,0.02478983,27924.0,27923.0,0.50557638]
[1680586783651,0.03078983,27924.0,27923.0,0.50557638]
[1680586786001,0.03078983,27924.0,27923.0,0.31675266]
[1680586786655,0.07852983,27924.0,27923.0,0.31575266]
[1680586786863,0.03678983,27924.0,27923.0,0.31675266]
[1680586787993,0.02112783,27924.0,27923.0,0.31675266]
[1680586788434,0.32112783,27924.0,27923.0,0.31675266]
[1680586788649,0.32163534,27924.0,27923.0,0.31675266]
[1680586789533,0.32112783,27924.0,27923.0,0.31693266]
[1680586789750,0.32136783,27924.0,27923.0,0.31681266]
[1680586789958,0.02112783,27924.0,27923.0,0.31693266]
[1680586790181,0.02112783,27924.0,27923.0,0.31675266]
[1680586801628,0.02112783,27924.0,27923.0,0.31693266]
[1680586802046,0.02112783,27924.0,27920.0,0.00018]
[1680586802047,0.38735025,27924.0,27920.0,0.00018]
[1680586802263,0.0855,27921.0,27916.0,0.4423164]
[1680586802477,0.22671381,27920.0,27917.0,0.19993069]
[1680586802690,0.0849,27918.0,27917.0,0.35661118]
[1680586802901,0.14120851,27918.0,27917.0,0.35661118]
[1680586804611,0.16820851,27918.0,27917.0,0.19993069]
[1680586804810,0.60147608,27918.0,27917.0,0.19993069]
[1680586805292,1.01603886,27918.0,27917.0,0.19993069]
[1680586805507,1.05153886,27918.0,27917.0,0.19993069]
[1680586805717,1.02453886,27918.0,27917.0,0.19993069]
[1680586807255,1.05153886,27918.0,27917.0,0.19993069]
[1680586807467,0.88297608,27918.0,27917.0,0.19993069]
[1680586807707,0.90997608,27918.0,27917.0,0.19993069]
[1680586807893,0.90281308,27918.0,27917.0,0.19993069]
[1680586808117,0.90997608,27918.0,27917.0,0.19993069]
[1680586808328,0.90281308,27918.0,27917.0,0.19993069]
[1680586808537,0.90997608,27918.0,27917.0,0.19993069]
[1680586809879,1.01597042,27918.0,27917.0,0.19993069]
[1680586810304,1.01597042,27918.0,27917.0,0.20070039]
[1680586810511,0.98897042,27918.0,27917.0,0.20070039]
[1680586810728,1.01597042,27918.0,27917.0,0.20070039]
[1680586810938,0.98897042,27918.0,27917.0,0.20070039]
[1680586811600,1.01597042,27918.0,27917.0,0.20070039]
[1680586813060,0.98897042,27918.0,27917.0,0.20070039]
[1680586813279,0.55570285,27918.0,27917.0,0.0007697]
[1680586813502,0.1,27917.0,27916.0,0.00779819]
[1680586813717,0.62878839,27917.0,27916.0,0.00773819]
[1680586813927,1.08461969,27917.0,27916.0,0.00773819]
[1680586814593,1.11161969,27917.0,27916.0,0.00773819]
[1680586815233,1.01161969,27917.0,27916.0,0.00786651]
[1680586815453,0.98461969,27917.0,27916.0,0.00786651]
[1680586816100,1.01161969,27917.0,27916.0,0.00773819]
[1680586816329,0.98461969,27917.0,27916.0,0.00773819]
[1680586816604,1.01161969,27917.0,27916.0,0.00773819]
[1680586817036,0.98461969,27917.0,27916.0,0.00773819]
[1680586817252,1.01161969,27917.0,27916.0,0.00773819]
[1680586818346,0.98461969,27917.0,27916.0,0.00773819]
[1680586818556,1.01161969,27917.0,27916.0,0.00773819]
[1680586818770,0.98461969,27917.0,27916.0,0.00773819]
[1680586818980,1.01161969,27917.0,27916.0,0.00773819]
[1680586819188,0.98461969,27917.0,27916.0,0.00773819]
[1680586819614,1.01161969,27917.0,27916.0,0.00773819]
[1680586819827,0.98461969,27917.0,27916.0,0.00773819]
[1680586820042,1.01161969,27917.0,27916.0,0.00773819]
[1680586820912,0.9247513,27917.0,27916.0,0.00773819]
[1680586821109,0.46942751,27917.0,27916.0,0.00773819]
[1680586821353,0.16942751,27917.0,27916.0,0.00773819]
[1680586821586,0.49642751,27917.0,27916.0,0.00773819]
[1680586822042,0.80468755,27917.0,27916.0,0.00773819]
[1680586822253,0.83168755,27917.0,27916.0,0.00786651]
[1680586822463,0.80468755,27917.0,27916.0,0.00786651]
[1680586822675,0.83168755,27917.0,27916.0,0.00786651]
[1680586822863,0.80468755,27917.0,27916.0,0.00786651]
[1680586823329,0.89802171,27917.0,27916.0,0.00786651]
[1680586823992,0.92502171,27917.0,27916.0,0.00786651]
[1680586824209,0.80468755,27917.0,27916.0,0.00786651]
[1680586824433,0.83168755,27917.0,27916.0,0.00786651]
[1680586824874,0.80468755,27917.0,27916.0,0.00786651]
[1680586825081,0.83168755,27917.0,27916.0,0.00786651]
[1680586825294,0.89072171,27917.0,27916.0,0.00786651]
[1680586825510,0.91772171,27917.0,27916.0,0.00786651]
[1680586825727,0.89072171,27917.0,27916.0,0.00786651]
[1680586826145,0.89072171,27917.0,27916.0,0.00773819]
[1680586826766,0.91772171,27917.0,27916.0,0.00773819]
[1680586830332,0.91772171,27917.0,27916.0,0.00786651]
[1680586830905,0.92646068,27917.0,27916.0,0.00786651]
[1680586832240,0.92646068,27917.0,27916.0,0.00773819]
[1680586832706,0.49666648,27917.0,27916.0,0.00773819]
[1680586832926,0.11176648,27917.0,27916.0,0.46013498]
[1680586833143,0.05773848,27917.0,27916.0,0.46013498]
[1680586833358,0.05773848,27917.0,27916.0,0.4602633]
[1680586833832,0.11086548,27917.0,27916.0,0.4602633]
[1680586834044,0.11936548,27917.0,27916.0,0.4602633]
[1680586834515,0.06623848,27917.0,27916.0,0.4602633]
[1680586834715,0.06573097,27917.0,27916.0,0.4602633]
[1680586834935,0.11643697,27917.0,27916.0,0.4602633]
[1680586835400,0.06573097,27917.0,27916.0,0.4602633]
[1680586837483,0.06573097,27917.0,27916.0,0.00786651]
[1680586837685,0.11639797,27917.0,27916.0,0.00786651]
[1680586837935,0.06573097,27917.0,27916.0,0.00786651]
[1680586838837,0.11931297,27917.0,27916.0,0.00786651]
[1680586839237,0.06573097,27917.0,27916.0,0.00786651]
[1680586839457,0.11776397,27917.0,27916.0,0.00786651]
[1680586840147,0.48787137,27917.0,27916.0,0.00786651]
[1680586840359,0.78787137,27917.0,27916.0,0.00786651]
[1680586840584,0.89957466,27917.0,27916.0,0.00786651]
[1680586841722,0.90008217,27917.0,27916.0,0.00786651]
[1680586841949,0.87308217,27917.0,27916.0,0.00786651]
[1680586842337,0.90008217,27917.0,27916.0,0.00786651]
[1680586842560,0.87308217,27917.0,27916.0,0.00786651]
[1680586842779,0.43333905,27916.0,27915.0,0.01196372]
[1680586842929,0.92320427,27916.0,27915.0,0.01196372]
[1680586844191,0.92320427,27916.0,27915.0,0.01209204]
[1680586844939,0.95020427,27916.0,27915.0,0.01209204]
[1680586845197,0.92320427,27916.0,27915.0,0.01209204]
[1680586845462,0.95020427,27916.0,27915.0,0.01209204]
[1680586845974,0.95071178,27916.0,27915.0,0.01209204]
[1680586846752,0.95035427,27916.0,27915.0,0.01209204]
[1680586847008,0.95020427,27916.0,27915.0,0.01209204]
[1680586851243,1.03570427,27916.0,27915.0,0.01209204]
[1680586852155,1.02730427,27916.0,27915.0,0.01209204]
[1680586855895,1.02781178,27916.0,27915.0,0.01209204]
[1680586856120,0.33467151,27916.0,27915.0,0.36511084]
[1680586856365,0.03467151,27916.0,27915.0,0.36511084]
[1680586856579,0.034164,27916.0,27915.0,0.01209204]
[1680586856814,0.16841387,27916.0,27915.0,0.01209204]
[1680586857030,0.58484053,27916.0,27915.0,0.01209204]
[1680586857461,0.89334053,27916.0,27915.0,0.01209204]
[1680586861246,0.97044053,27916.0,27915.0,0.01209204]
[1680586861451,0.97044053,27916.0,27915.0,0.09724675]
[1680586861677,0.97094804,27916.0,27915.0,0.09724675]
[1680586861886,0.89384804,27916.0,27915.0,0.09724675]
[1680586862742,0.89384804,27916.0,27915.0,0.01209204]
[1680586862959,0.89334053,27916.0,27915.0,0.01209204]
[1680586863172,0.80875466,27916.0,27915.0,0.01209204]
[1680586864769,0.80875466,27916.0,27915.0,0.09724675]
[1680586864964,0.80926217,27916.0,27915.0,0.09724675]
[1680586868701,0.75959817,27916.0,27915.0,0.09724675]
[1680586869367,0.34317151,27916.0,27915.0,0.09724675]
[1680586869594,0.09468451,27916.0,27915.0,0.09724675]
[1680586869839,0.394177,27916.0,27915.0,0.09724675]
[1680586870061,0.39468451,27916.0,27915.0,0.09724675]
[1680586878067,0.38618451,27916.0,27915.0,0.09724675]
[1680586878958,0.48162671,27916.0,27915.0,0.09724675]
[1680586879173,0.84574176,27916.0,27915.0,0.01209204]
[1680586879390,0.85373425,27916.0,27915.0,0.01209204]
[1680586882884,0.82673425,27916.0,27915.0,0.01209204]
[1680586883098,0.85373425,27916.0,27915.0,0.01209204]
[1680586883308,0.82673425,27916.0,27915.0,0.01209204]
[1680586883517,0.85373425,27916.0,27915.0,0.01209204]
[1680586883729,0.82673425,27916.0,27915.0,0.01209204]
[1680586883954,0.85373425,27916.0,27915.0,0.01209204]
[1680586884390,0.82673425,27916.0,27915.0,0.01209204]
[1680586884602,0.85373425,27916.0,27915.0,0.01209204]
[1680586885511,0.82673425,27916.0,27915.0,0.01209204]
[1680586885731,0.85373425,27916.0,27915.0,0.01209204]
[1680586886192,0.95373425,27916.0,27915.0,0.01209204]
[1680586886411,0.92673425,27916.0,27915.0,0.01209204]
[1680586886614,0.95373425,27916.0,27915.0,0.01209204]
[1680586887532,0.95373425,27916.0,27915.0,0.21202273]
[1680586887756,2.24369222,27916.0,27915.0,0.21202273]
[1680586888011,2.24369222,27916.0,27915.0,0.01209204]
[1680586888233,2.24318471,27916.0,27915.0,0.21202273]
[1680586888452,2.24369222,27916.0,27915.0,0.21202273]
[1680586888892,2.24369222,27916.0,27915.0,0.01209204]
[1680586889113,2.24318471,27916.0,27915.0,0.01209204]
[1680586890212,0.1,27915.0,27913.0,0.00018]
[1680586890479,0.47397981,27914.0,27912.0,0.01276204]
[1680586890697,0.525903,27913.0,27908.0,0.00018]
[1680586890918,0.525903,27913.0,27907.0,0.19993069]
[1680586890919,0.0771,27910.0,27907.0,0.20011069]
[1680586891140,0.0771,27908.0,27907.0,0.20011069]
[1680586891331,0.58039281,27908.0,27907.0,0.20011069]
[1680586891577,0.82151573,27908.0,27907.0,0.20011069]
[1680586892235,0.84851573,27908.0,27907.0,0.20011069]
[1680586892457,0.9306669,27908.0,27907.0,0.20113762]
[1680586893342,0.9576669,27908.0,27907.0,0.20113762]
[1680586894227,0.9930309,27908.0,27907.0,0.20113762]
[1680586896570,1.02433664,27908.0,27907.0,0.00120693]
[1680586896808,1.02433664,27908.0,27907.0,0.00102693]
[1680586897256,0.99733664,27908.0,27907.0,0.00102693]
[1680586897468,1.02433664,27908.0,27907.0,0.00102693]
[1680586897683,0.99733664,27908.0,27907.0,0.00102693]
[1680586897924,1.02433664,27908.0,27907.0,0.00102693]
[1680586899259,1.02433664,27908.0,27906.0,0.22091069]
[1680586899474,0.41316572,27907.0,27906.0,0.22091069]
[1680586899697,1.19176987,27907.0,27906.0,0.22091069]
[1680586899917,0.73466472,27907.0,27906.0,0.02098]
[1680586900142,0.73466472,27907.0,27906.0,0.0100335]
[1680586900369,0.1,27906.0,27905.0,0.00543885]
[1680586900565,0.69961699,27906.0,27905.0,0.00543885]
[1680586901066,0.7001245,27906.0,27905.0,0.00543885]
[1680586901708,0.7271245,27906.0,27905.0,0.00543885]
[1680586905135,1.2833945,27906.0,27905.0,0.00543885]
[1680586906279,1.2563945,27906.0,27905.0,0.00543885]
[1680586906499,1.2833945,27906.0,27905.0,0.00543885]
[1680586906723,1.2563945,27906.0,27905.0,0.00543885]
[1680586906938,1.2833945,27906.0,27905.0,0.00543885]
[1680586907160,1.1042245,27906.0,27905.0,0.00543885]
[1680586907384,1.2833945,27906.0,27905.0,0.00543885]
[1680586907616,1.2563945,27906.0,27905.0,0.00543885]
[1680586907827,1.2563945,27906.0,27899.0,0.02086]
[1680586907828,0.1,27903.0,27899.0,0.02086]
[1680586908047,0.1,27903.0,27898.0,0.22073069]
[1680586908048,0.0766,27900.0,27898.0,0.20686281]
[1680586908288,0.178832,27899.0,27898.0,0.20255589]
[1680586908506,0.487332,27899.0,27898.0,0.20255589]
[1680586908730,0.53662346,27899.0,27898.0,0.20255589]
[1680586909680,0.56362346,27899.0,27898.0,0.20255589]
[1680586910328,0.96602043,27899.0,27898.0,0.20473881]
[1680586911265,0.88902043,27899.0,27898.0,0.20473881]
[1680586911907,0.86202043,27899.0,27898.0,0.20473881]
[1680586912189,0.88902043,27899.0,27898.0,0.20473881]
[1680586913528,0.9249692,27899.0,27898.0,0.20473881]
[1680586915699,1.02512612,27899.0,27898.0,0.20473881]
[1680586916123,0.9249692,27899.0,27898.0,0.20473881]
[1680586921189,0.9249692,27899.0,27898.0,0.00481688]
[1680586921427,0.92446169,27899.0,27898.0,0.00481688]
[1680586924579,0.93351344,27899.0,27898.0,0.00481688]
[1680586927270,0.44845126,27898.0,27894.0,0.72655246]
[1680586927491,0.330007,27897.0,27894.0,0.72655246]
[1680586927696,0.33051451,27897.0,27894.0,0.72655246]
[1680586928121,0.38328198,27896.0,27895.0,0.0003855]
[1680586928332,0.75128549,27896.0,27895.0,0.0003855]
[1680586928999,0.69945849,27896.0,27895.0,0.0003855]
[1680586929643,0.72645849,27896.0,27895.0,0.0003855]
[1680586934387,0.72645849,27896.0,27895.0,0.08554021]
[1680586934559,0.72645849,27896.0,27895.0,0.0003855]
[1680586934954,0.72645849,27896.0,27895.0,0.08554021]
[1680586940338,0.72645849,27896.0,27895.0,0.21330094]
[1680586942411,0.72645849,27896.0,27895.0,0.55149349]
[1680586943300,0.72645849,27896.0,27895.0,0.12814623]
[1680586945011,0.72645849,27896.0,27895.0,0.72221018]
[1680586945137,0.72645849,27896.0,27895.0,0.55149349]
[1680586946807,0.72645849,27896.0,27895.0,0.12814623]
[1680586947463,0.72586809,27896.0,27895.0,0.12814623]
[1680586948224,0.77877709,27896.0,27895.0,0.0003855]
[1680586948423,1.4996145,27895.0,27894.0,0.0855116]
[1680586948641,1.8807395,27895.0,27894.0,0.0855116]
[1680586949298,1.8807395,27895.0,27894.0,0.08564012]
[1680586949536,1.8807395,27895.0,27894.0,0.00012852]
[1680586950290,1.9077395,27895.0,27894.0,0.08564012]
[1680586950490,1.8807395,27895.0,27894.0,0.08564012]
[1680586950720,1.9077395,27895.0,27894.0,0.08564012]
[1680586951295,1.8566225,27895.0,27894.0,0.08564012]
[1680586952289,1.9056035,27895.0,27894.0,0.08564012]
[1680586952507,1.8566225,27895.0,27894.0,0.21340085]
[1680586953813,1.8296225,27895.0,27894.0,0.21340085]
[1680586954030,1.8566225,27895.0,27894.0,0.21340085]
[1680586955586,1.8566225,27895.0,27894.0,0.21342555]
[1680586955798,1.8566225,27895.0,27894.0,0.63680262]
[1680586956062,1.8566225,27895.0,27894.0,0.21342555]
[1680586956286,1.9067945,27895.0,27894.0,0.21342555]
[1680586956738,1.9086365,27895.0,27894.0,0.21342555]
[1680586957008,2.12860058,27895.0,27894.0,0.08566482]
[1680586957233,2.12977458,27895.0,27894.0,0.08566482]
[1680586957900,2.13028209,27895.0,27894.0,0.08566482]
[1680586958127,2.12977458,27895.0,27894.0,0.08566482]
[1680586958344,1.9088865,27895.0,27894.0,0.08566482]
[1680586958561,1.9057385,27895.0,27894.0,0.08566482]
[1680586958994,1.8566225,27895.0,27894.0,0.08566482]
[1680586959423,1.9115035,27895.0,27894.0,0.08566482]
[1680586960136,1.8566225,27895.0,27894.0,0.08566482]
[1680586961007,1.85713001,27895.0,27894.0,0.08566482]
[1680586961846,1.90799201,27895.0,27894.0,0.08566482]
[1680586962068,1.85713001,27895.0,27894.0,0.08566482]
[1680586962318,2.09680682,27895.0,27894.0,0.08566482]
[1680586962547,2.09680682,27895.0,27894.0,0.07566482]
[1680586962548,1.90934401,27895.0,27894.0,0.07566482]
[1680586963245,1.85713001,27895.0,27894.0,0.07566482]
[1680586963439,1.85713001,27895.0,27894.0,0.20342555]
[1680586963663,1.85713001,27895.0,27894.0,0.07566482]
[1680586963906,1.85713001,27895.0,27894.0,0.20342555]
[1680586964127,1.85713001,27895.0,27894.0,0.07566482]
[1680586964798,2.28484292,27895.0,27894.0,0.07566482]
[1680586965041,2.33127541,27895.0,27894.0,0.07566482]
[1680586965271,1.8216145,27895.0,27894.0,0.07566482]
[1680586965486,1.8216145,27895.0,27894.0,0.78939943]
[1680586965705,1.8216145,27895.0,27894.0,0.96029612]
[1680586966380,1.7946145,27895.0,27894.0,0.96029612]
[1680586966616,1.7996145,27895.0,27894.0,0.96029612]
[1680586966846,1.7946145,27895.0,27894.0,0.96029612]
[1680586967056,1.8066145,27895.0,27894.0,0.96029612]
[1680586967585,1.8066145,27895.0,27894.0,0.83253539]
[1680586969875,1.81429101,27895.0,27894.0,0.83235539]
[1680586970906,1.8137835,27895.0,27894.0,0.83253539]
[1680586971758,1.8137835,27895.0,27894.0,1.04584371]
[1680586972556,1.8137835,27895.0,27894.0,0.83253539]
[1680586972960,1.81429101,27895.0,27894.0,0.83235539]
[1680586973511,1.8137835,27895.0,27894.0,0.83253539]
[1680586974319,1.8017835,27895.0,27894.0,0.83253539]
[1680586974533,1.8197835,27895.0,27894.0,0.83253539]
[1680586975088,1.8197835,27895.0,27894.0,1.04584371]
[1680586976049,1.8197835,27895.0,27894.0,0.75543539]
[1680586976815,1.8197835,27895.0,27894.0,0.96874371]
[1680586977015,1.8197835,27895.0,27894.0,0.75543539]
[1680586977304,1.8341225,27895.0,27894.0,0.75543539]
[1680586977625,1.8341225,27895.0,27894.0,0.59426999]
[1680586977842,1.8426225,27895.0,27894.0,0.59426999]
[1680586979063,1.8426225,27895.0,27894.0,0.29916265]
[1680586979285,1.8426225,27895.0,27894.0,0.72253595]
[1680586980052,2.42369354,27895.0,27894.0,0.59426999]
[1680586980258,2.19490147,27895.0,27894.0,0.29916915]
[1680586980470,2.19490147,27895.0,27894.0,0.59426999]
[1680586981288,2.24530447,27895.0,27894.0,0.59426999]
[1680586981706,2.19490147,27895.0,27894.0,0.55182945]
[1680586981926,2.19490147,27895.0,27894.0,0.08570549]
[1680586982118,2.24617347,27895.0,27894.0,0.08552549]
[1680586982737,2.19490147,27895.0,27894.0,0.08552549]
[1680586982949,1.40908901,27894.0,27893.0,0.31997284]
[1680586983163,1.42475901,27894.0,27893.0,0.14925615]
[1680586983378,1.42475901,27894.0,27893.0,0.57246205]
[1680586983606,1.42475901,27894.0,27893.0,0.57264205]
[1680586984013,1.43675901,27894.0,27893.0,0.57264205]
[1680586984433,1.43675901,27894.0,27893.0,0.74348727]
[1680586984654,1.42475901,27894.0,27893.0,0.57277058]
[1680586984924,1.43675901,27894.0,27893.0,0.57277058]
[1680586985812,1.42475901,27894.0,27893.0,0.57277058]
[1680586986032,1.43675901,27894.0,27893.0,0.57277058]
[1680586986245,1.42475901,27894.0,27893.0,0.57277058]
[1680586986462,1.45175901,27894.0,27893.0,0.57277058]
[1680586988970,1.91653224,27894.0,27893.0,0.57277058]
[1680586989684,1.91703975,27894.0,27893.0,0.57259058]
[1680586990523,1.91653224,27894.0,27893.0,0.57277058]
[1680586990941,1.91703975,27894.0,27893.0,0.57159058]
[1680586992231,1.96973175,27894.0,27893.0,0.57159058]
[1680586992884,1.94595424,27894.0,27893.0,0.57177058]
[1680586993322,1.94595424,27894.0,27893.0,0.74248727]
[1680586993737,1.89326224,27894.0,27893.0,0.74248727]
[1680586996829,1.89326224,27894.0,27893.0,0.57177058]
[1680586997033,1.89326224,27894.0,27893.0,0.74248727]
[1680586998801,1.89326224,27894.0,27893.0,0.57177058]
[1680586999763,1.89326224,27894.0,27893.0,0.74248727]
[1680587001253,1.89326224,27894.0,27893.0,0.57177058]